{"text_format":"3","workbook":"xlsx","n_sheets":7,"sheets":["INSTRUCTIONS","Member Grouping","COVER PAGE ","Base System- 2 PB","4 PB","7 BP","10 PB"],"not_rendered":{"images":1,"defined_names":3},"read":"whole","date_system":"1900"}

{"sheet":"INSTRUCTIONS","index":0,"n_rows":32,"n_cols":15,"rows_kept":32,"hidden":true,"merged":[[3,0,3,13]]}
["Schedule 1: The Goods Specifications and/or Scope and Scheduling Agreement"]
["PUR ***/* - Catering - Supplies, Small Equipment, Meat and Frozen Products"]
["CONTRACT PERIOD: 1 August 2017 - 31 July 2020"]
["INSTRUCTIONS"]
[]
["Good day Supplier,"]
[]
["Thank you for taking the time to complete this price schedule. Kindly read the instructions duly and complete as fully as possible. You are welcome to complete this schedule electronically"]
["and also keep the formatting of this worksheet. You may add in lines but do not alter the information already available. "]
[]
["If you would like to add additional items, please do so at the bottom of each worksheet and clearly type in: ADDITIONAL LINE ITEMS NOT LISTED"]
[]
["The PURCO SA Membership is divided into 8 groups, please see the following tab for a detailed breakdown. Please ensure that you tender for the group you are able to supply."]
[]
["Herewith instructions in completing the schedules:"]
[]
[null,"Please place your company name in",{"$nulls":4},"The Membership is divided into groups, please tender accordingly. Place your price in the appropriate group's block/s"]
[null,"each line you complete, right through each"]
[null," product and each line. "]
[]
["Company Name","Price Unit","Approximate Requirement","Brand name & Description","Packing","Supplier Product code","Group 1 ","Group 2 ","Group 3","Group 4 ","Group 5","Group 6","Group 7 ","Group 8"]
["BAKING REQUISITE"]
["Baking powder, tins",{"$nulls":13},"       Do not type in these blocks"]
["500g","1 x 500g"]
["eg: Lisa's Baking Shop"]
["eg: Lisa's Baking Shop",{"$nulls":13},"          Type in the open block/s"]
["eg: Lisa's Baking Shop"]
[{"$nulls":5},"Insert full brand name AND description"]
[null,"Product Description",null,null,"Insert Price per unit",null,null,"Your supplier code number for the product"]
[null,"Product Requirement",{"$nulls":4},"How is your product packed (ie 1x500 or 10x500 etc)"]
[null,"Required Measurement to be supplied"]
[{"$nulls":4},"This is to indicate the approximate requirement from the Members"]

{"sheet":"Member Grouping","index":1,"n_rows":25,"n_cols":9,"rows_kept":25,"hidden":true,"merged":[[3,0,3,8],[4,0,4,8]]}
["Schedule 1: The Goods Specifications and/or Scope and Scheduling Agreement"]
[{"$f":"INSTRUCTIONS!A2","v":"PUR ***/* - Catering - Supplies, Small Equipment, Meat and Frozen Products"}]
["CONTRACT PERIOD: 1 August 2017 - 31 July 2020"]
["Membership divided into eight groups based on location"]
["Groups"]
["No.","Group 1","Group 2","Group 3","Group 4","Group 5","Group 6","Group 7","Group 8"]
[1,"University of         Limpopo","CSIR","North West University","Central University of Technology","Durban University of Technology","Nelson Mandela Metropolitan University","Cape Peninsula University of Technology","Namibia University of Science and Tech"]
[2,"University of Venda","Council on Higher Education - CHE",null,"University of the Free State","Mangosuthu University of Technology","Rhodes University","Cape Town Hotel School (CPUT)","University of Namibia"]
[3,null,"Engineering Council of South Africa - ECSA",null,null,"University of KwaZulu-Natal","University of Fort Hare","Stellenbosch University"]
[4,null,"MINTEK",null,null,"University of Zululand","Walter Sisulu University","University of Cape Town"]
[5,null,"Monash University",null,null,"CAPRISA","PE TVET College","University of the Western Cape"]
[6,null,"National Research Foundation - NRF",null,null,"K-RITH",null,"Northlink TVET College"]
[7,null,"South African Bureau of Standards - SABS",{"$nulls":4},"Moonstone Business School "]
[8,null,"Tshwane University of Technology",{"$nulls":4},"Milpark CPT"]
[9,null,"UMALUSI",{"$nulls":4},"Sol Plaatje University"]
[10,null,"University of Johannesburg"]
[11,null,"University of Pretoria"]
[12,null,"University of South Africa - UNISA"]
[13,null,"University of the Witwatersrand"]
[14,null,"Vaal University of Technology"]
[15,null,"Milpark JHB"]
[16,null,"Sefako Makgatho Health & Sciences"]
[17,null,"Quality Counsil on Trade and Occupation"]
[18,null,"University of Mpumalanga"]
[19,null,"IIE"]

{"sheet":"COVER PAGE ","index":2,"n_rows":30,"n_cols":4,"rows_kept":30,"merged":[[0,0,12,4],[13,0,13,4],[23,0,23,4],[25,0,25,3],[26,0,26,3],[27,0,27,3],[28,0,28,3],[29,0,29,3]]}
{"$rows_empty":13}
["PRICING SUBMISSION"]
[]
[]
["RFP NO:",null,null,"RFP No. 3717/27/01/2025"]
[]
["RFP NAME:",null,null,"Supply, Delivery, Installation and Comisioning of Parallel File System Storage hardware, software maintenance and support for a five (5) year period  "]
[]
["BIDDER NAME"]
[]
[]
[]
["Instructions: "]
["1. Bidders must quote for all line items."]
["2. Bidder must quote for?\nBase system - 2 Petabyte Parallele File System Storage\n"]
["3. Prices will be firm and valid for the duration of the contract period"]
["4. Support and Licences  is required for 5 years and must be quoted for."]
["5. This spreadsheet summarises the pricing from bidders. Bidders must additionally provide a detailed BOM pricing.\n"]

{"sheet":"Base System- 2 PB","index":3,"n_rows":31,"n_cols":4,"rows_kept":31,"merged":[[6,2,6,4],[7,2,7,4],[8,2,8,4],[10,1,10,4],[11,3,11,4],[12,3,12,4],[13,3,13,4],[14,3,14,4],[15,3,15,4],[16,3,16,4],[17,3,17,4],[18,3,18,4],[19,3,19,4],[20,3,20,4],[21,3,21,4],[22,3,22,4],[23,3,23,4],[26,1,26,2],[27,1,27,4],[28,1,28,4]]}
[]
[]
[]
[]
[]
[]
[null,"Base System","2 Petabyte Parallel File System Storage"]
[null,"RFP No. ","3717/27/01/2025"]
[null,"Bidder's Name",{"$f":"'COVER PAGE '!D21","v":0}]
[]
[]
[null,"Description","Prices in RAND Excluding VAT","Comments and Notes"]
[null,"Hardware"]
[null,"Software"]
[null,"Licences for  five (5) years "]
[null,"Supply and Delivery of equipment"]
[null,"Installation and commissioning"]
[null,"Training "]
[null,"Support and Maintenance for five (5) years "]
[null,"Sub-Total Excl. VAT",{"$f":"SUM(C13:C19)","v":{"v":0,"d":"R0.00"}}]
[null,"VAT at 15%"]
[null,"Trade Discount"]
[null,"Total Amount",{"$f":"(C20+C21)-C22","v":{"v":0,"d":"R0.00"}}]
[null,"Settlement Discount %"]
[]
[]
[null,"Definition of discounts"]
[null,"A settlement discount is where a business offers the CSIR a discount when an invoice is paid on time or within 45 days from receipt of statement."]
[null,"A trade discount is defined as a type of discount that is immediately deducted from the retail or proposal price of an item. "]
[]
[null,"Confirm Lead time of the Parallel File System Storage Hardware in weeks to the CSIR Rosebank Campus in Cape Town is Weeks "]

{"sheet":"4 PB","index":4,"n_rows":11,"n_cols":7,"rows_kept":11,"hidden":true}
[]
[]
["Description  ","Year 1 ","Year 2 ","Year 3 ","Year 4 ","Year 5 ","Total in Rands "]
["Hardware Costs"," "," "," "," "," ",{"$f":"SUM(B4:F4)","v":0}]
["Software costs "," "," "," "," "," ",{"$f":"SUM(B5:F5)","v":0}]
["Support and Maintenance over five (5) years "," "," "," "," "," ",0]
["Onsite support for the parallel file system"," "," "," "," "," ",0]
["Consulting, deployment, data migration Services"," "," ",{"$nulls":3},0]
["Training and Certification  "," "," ",{"$nulls":3},0]
["OEM credits"," "," "," "," "," ",0]
["Total  ",{"$f":"SUM(B4:B11)","v":0},{"$f":"SUM(C4:C11)","v":0},0,0,0,{"$f":"SUM(G4:G10)","v":0}]

{"sheet":"7 BP","index":5,"n_rows":11,"n_cols":7,"rows_kept":11,"hidden":true}
[]
[]
["Description  ","Year 1 ","Year 2 ","Year 3 ","Year 4 ","Year 5 ","Total in Rands "]
["Hardware Costs"," "," "," "," "," ",{"$f":"SUM(B4:F4)","v":0}]
["Software costs "," "," "," "," "," ",{"$f":"SUM(B5:F5)","v":0}]
["Support and Maintenance over five (5) years "," "," "," "," "," ",0]
["Onsite support for the parallel file system"," "," "," "," "," ",0]
["Consulting, deployment, data migration Services"," "," ",{"$nulls":3},0]
["Training and Certification  "," "," ",{"$nulls":3},0]
["OEM credits"," "," "," "," "," ",0]
["Total  ",{"$f":"SUM(B4:B11)","v":0},{"$f":"SUM(C4:C11)","v":0},0,0,0,{"$f":"SUM(G4:G10)","v":0}]

{"sheet":"10 PB","index":6,"n_rows":11,"n_cols":7,"rows_kept":11,"hidden":true}
[]
[]
["Description  ","Year 1 ","Year 2 ","Year 3 ","Year 4 ","Year 5 ","Total in Rands "]
["Hardware Costs"," "," "," "," "," ",{"$f":"SUM(B4:F4)","v":0}]
["Software costs "," "," "," "," "," ",{"$f":"SUM(B5:F5)","v":0}]
["Support and Maintenance over five (5) years "," "," "," "," "," ",0]
["Onsite support for the parallel file system"," "," "," "," "," ",0]
["Consulting, deployment, data migration Services"," "," ",{"$nulls":3},0]
["Training and Certification  "," "," ",{"$nulls":3},0]
["OEM credits"," "," "," "," "," ",0]
["Total  ",{"$f":"SUM(B4:B11)","v":0},{"$f":"SUM(C4:C11)","v":0},0,0,0,{"$f":"SUM(G4:G10)","v":0}]